bitfinex-derivatives/quotes_SOLF0:USTF0_20251002
["timestamp","ask_amount","ask_price","bid_price","bid_amount"]
[1759369659676,7.56,222.76,222.68,10.00221318]
[1759369659874,11.5984,222.76,222.68,10.00221318]
[1759369660483,7.56,222.73,222.64,7.32]
[1759369661583,4.0391,222.72,222.64,7.32]
[1759369663187,4.0395,222.7,222.64,7.32]
[1759369663787,11.5995,222.7,222.64,7.32]
[1759369663978,11.5995,222.7,222.61,2.68221318]
[1759369666188,7.56,222.7,222.61,2.68221318]
[1759369666388,7.56,222.7,222.62,7.32]
[1759369666577,4.039,222.73,222.65,7.32]
[1759369667591,7.56,222.74,222.67,2.68221318]
[1759369667890,7.56,222.74,222.68,7.32]
[1759369668183,4.0385,222.76,222.68,7.32]
[1759369668387,7.56,222.78,222.7,2.68221318]
[1759369668589,7.56,222.78,222.71,7.32]
[1759369669585,7.56,222.83,222.73,2.68221318]
[1759369669884,7.56,222.83,222.76,2.68221318]
[1759369670690,7.56,222.83,222.74,7.32]
[1759369671486,4.0373,222.82,222.74,7.32]
[1759369672487,7.56,222.83,222.74,10.00221318]
[1759369672989,11.5971,222.83,222.74,10.00221318]
[1759369675690,7.95,222.8,222.73,2.68221318]
[1759369676494,4.0378,222.79,222.73,2.68221318]
[1759369676793,4.0378,222.79,222.7,10.04221318]
[1759369679302,4.0378,222.79,222.7,14.08161318]
[1759369679695,4.0378,222.79,222.7,7.36]
[1759369679896,4.0378,222.79,222.7,10.04221318]
[1759369680494,7.95,222.87,222.76,2.68221318]
[1759369680998,4.0368,222.85,222.77,7.36]
[1759369681701,4.0371,222.83,222.77,7.36]
[1759369683201,4.0371,222.83,222.75,2.68221318]
[1759369683392,4.0375,222.81,222.73,7.36]
[1759369684497,4.0375,222.81,222.73,10.04221318]
[1759369685301,4.0375,222.81,222.7,4.0393]
[1759369685302,7.95,222.8,222.67,4.0399]
[1759369685508,4.0383,222.77,222.69,2.68221318]
[1759369685705,4.0383,222.77,222.68,7.36]
[1759369685706,7.95,222.86,222.73,7.36]
[1759369685906,7.95,222.83,222.73,10.04221318]
[1759369686604,4.0373,222.82,222.73,10.04221318]
[1759369687001,4.0377,222.8,222.73,10.04221318]
[1759369687209,4.0377,222.8,222.73,7.36]
[1759369687606,11.9871,222.83,222.73,7.36]
[1759369687799,11.9871,222.83,222.74,2.68221318]
[1759369688612,4.0375,222.81,222.74,2.68221318]
[1759369689711,4.0379,222.79,222.73,7.36]
[1759369690214,4.0373,222.82,222.73,7.36]
[1759369690514,7.95,222.83,222.75,7.36]
[1759369691109,7.95,222.83,222.75,11.3985]
[1759369691515,7.95,222.83,222.75,7.36]
[1759369692405,334.89,222.88,222.75,7.36]
[1759369692605,334.89,222.88,222.78,7.36]
[1759369694816,4.0367,222.85,222.78,7.36]
[1759369695516,71.8603603,222.91,222.78,7.36]
[1759369695517,7.95,222.92,222.83,2.68221318]
[1759369695716,7.95,222.95,222.84,7.36]
[1759369695911,7.95,222.95,222.83,2.68221318]
[1759369696114,7.95,222.95,222.8,7.36]
[1759369696309,4.0353,222.93,222.8,7.36]
[1759369696513,7.95,222.92,222.8,7.36]
[1759369697012,7.95,222.92,222.8,2.68221318]
[1759369697305,7.95,222.92,222.79,7.36]
[1759369697306,7.95,222.9,222.79,7.36]
[1759369697512,7.95,222.9,222.82,7.36]
[1759369698110,11.9858,222.9,222.82,7.36]
[1759369698316,74.7661,222.9,222.78,10.04221318]
[1759369698616,11.9858,222.9,222.78,10.04221318]
[1759369698914,4.0363,222.88,222.78,10.04221318]
[1759369699412,7.95,222.89,222.78,10.04221318]
[1759369699718,7.95,222.89,222.82,7.36]
[1759369700516,7.95,222.98,222.85,7.36]
[1759369700721,7.95,222.98,222.88,7.36]
[1759369700917,4.0341,223.0,222.91,7.67]
[1759369701221,11.7041,223.0,222.91,7.67]
[1759369701910,62.7604,222.97,222.81,4.0373]
[1759369702109,7.67,222.96,222.81,4.0373]
[1759369702311,7.67,223.0,222.89,2.68221318]
[1759369702514,11.7042,223.0,222.9,7.67]
[1759369703719,4.0345,222.98,222.9,7.67]
[1759369704424,4.0347,222.96,222.88,2.68221318]
[1759369705218,4.0343,222.99,222.89,7.79]
[1759369705419,7.55,222.99,222.89,7.79]
[1759369705620,62.7577,222.98,222.89,7.79]
[1759369705825,4.035,222.95,222.88,2.68221318]
[1759369706021,4.035,222.95,222.85,2.68221318]
[1759369706326,4.0357,222.91,222.84,7.79]
[1759369706920,4.036,222.89,222.84,7.79]
[1759369707121,4.036,222.89,222.82,10.47221318]
[1759369708422,7.55,222.93,222.83,2.68221318]
[1759369708627,7.55,223.0,222.89,2.68221318]
[1759369708826,7.55,223.0,222.9,7.79]
[1759369710222,70.3073,222.98,222.87,2.68221318]
[1759369710728,11.5852,222.94,222.87,2.68221318]
[1759369710926,7.55,222.94,222.85,7.79]
[1759369711929,7.55,222.91,222.8,10.47221318]
[1759369712618,7.55,222.91,222.83,10.47221318]
[1759369714628,4.0358,222.9,222.83,10.47221318]
[1759369717831,62.7843,222.89,222.78,10.47221318]
[1759369718125,7.55,222.88,222.78,10.47221318]
[1759369718333,7.55,222.88,222.81,1.71485009]
[1759369719032,4.0365,222.87,222.81,1.71485009]
[1759369719625,4.0365,222.87,222.83,1.71485009]
[1759369719826,7.55,222.87,222.83,1.71485009]
[1759369720026,64.48955009,222.92,222.78,4.0379]
[1759369720334,9.26485009,222.89,222.8,1.71485009]
[1759369720631,7.55,222.87,222.79,9.50485009]
[1759369721025,11.5865,222.87,222.81,1.71485009]
[1759369721627,7.55,222.93,222.85,9.50485009]
[1759369721934,7.55,222.93,222.87,1.71485009]
[1759369722227,67.7575632,223.0,222.86,7.79]
[1759369722228,7.55,222.99,222.86,7.79]
[1759369722435,7.55,222.99,222.91,1.71485009]
[1759369722630,7.55,222.99,222.9,1.71485009]
[1759369722828,4.0344,222.98,222.9,1.71485009]
[1759369723029,7.55,222.97,222.9,1.71485009]
[1759369723225,4.0349,222.95,222.8,7.79]
[1759369723430,7.55,222.94,222.87,1.71485009]
[1759369723629,7.55,222.92,222.86,1.71485009]
[1759369723834,7.55,222.92,222.84,1.71485009]
[1759369724329,11.5862,222.88,222.82,1.71485009]
[1759369724532,7.55,222.88,222.81,1.71485009]
[1759369725324,7.55,222.88,222.77,5.38697623]
[1759369725325,7.55,222.88,222.83,9.50485009]
[1759369725725,7.55,222.89,222.78,7.79]
[1759369725931,7.55,222.89,222.83,1.71485009]
[1759369726131,7.55,222.89,222.82,7.79]
[1759369726332,7.55,222.92,222.86,1.71485009]
[1759369726634,7.55,222.92,222.82,7.79]
[1759369726635,7.55,222.92,222.85,1.71485009]
[1759369726828,7.55,222.92,222.84,1.71485009]
[1759369727026,7.55,222.9,222.83,1.71485009]
[1759369727226,7.55,222.9,222.78,7.79]
[1759369727428,7.55,222.9,222.82,1.71485009]
[1759369727829,4.036,222.89,222.78,7.79]
[1759369728136,4.036,222.89,222.81,1.71485009]
[1759369728331,4.036,222.89,222.78,7.79]
[1759369728536,7.55,222.9,222.82,1.71485009]
[1759369728833,7.55,222.95,222.86,1.71485009]
[1759369729134,7.55,222.95,222.87,1.71485009]
[1759369729331,7.55,222.95,222.84,7.79]
[1759369729536,7.55,222.93,222.85,1.71485009]
[1759369729731,7.55,222.93,222.84,7.79]
[1759369729938,7.55,222.93,222.85,1.71485009]
[1759369730435,1.71485009,222.92,222.85,1.71485009]
[1759369730636,1.71485009,222.9,222.83,1.71485009]
[1759369730835,7.55,222.91,222.83,1.71485009]
[1759369731033,1.71485009,222.9,222.83,1.71485009]
[1759369731235,4.0359,222.9,222.83,1.71485009]
[1759369731434,4.0359,222.9,222.8,7.79]
[1759369731632,4.0359,222.9,222.83,1.71485009]
[1759369731832,4.0359,222.9,222.82,1.71485009]
[1759369732635,4.0359,222.9,222.8,7.79]
[1759369732838,4.0359,222.9,222.82,1.71485009]
[1759369733035,4.0359,222.9,222.8,7.79]
[1759369733236,4.0359,222.9,222.82,1.71485009]
[1759369733537,7.55,222.91,222.84,1.71485009]
[1759369733740,7.55,222.91,222.86,7.59]
[1759369733942,7.55,222.91,222.87,1.71485009]
[1759369734140,7.55,222.91,222.87,9.30485009]
[1759369734642,7.55,222.91,222.87,7.59]
[1759369735642,7.55,222.91,222.86,1.71485009]
[1759369735936,7.55,222.91,222.86,9.30485009]
[1759369737533,7.55,222.91,222.86,1.71485009]
[1759369737841,7.55,222.91,222.88,1.71485009]
[1759369738340,7.55,222.91,222.87,1.71485009]
[1759369738840,4.0351,222.94,222.87,1.71485009]
[1759369739440,4.0351,222.94,222.86,7.59]
[1759369739741,4.0351,222.94,222.87,1.71485009]
[1759369740544,7.77,222.95,222.89,1.71485009]
[1759369741239,7.77,222.95,222.91,1.71485009]
[1759369741445,7.77,222.95,222.91,9.30485009]
[1759369741845,7.77,222.97,222.83,7.59]
[1759369742042,9.48485009,222.97,222.89,1.71485009]
[1759369742238,7.77,222.97,222.89,1.71485009]
[1759369742440,9.48485009,222.97,222.89,1.71485009]
[1759369743146,4.0347,222.96,222.89,1.71485009]
[1759369744145,9.48485009,222.97,222.89,1.71485009]
[1759369744644,9.48485009,222.97,222.87,4.0363]
[1759369744840,9.48485009,222.97,222.9,1.71485009]
[1759369746042,9.48485009,222.97,222.89,1.71485009]
[1759369746239,7.77,222.97,222.9,7.59]
[1759369746443,7.77,222.97,222.91,1.71485009]
[1759369746643,7.77,222.97,222.93,1.71485009]
[1759369747141,4.0344,222.98,222.93,1.71485009]
[1759369747440,7.77,223.0,222.93,1.71485009]
[1759369747745,4.0349,222.96,222.91,1.71485009]
[1759369748046,7.77,222.95,222.9,9.30485009]
[1759369748241,4.0355,222.92,222.8,4.0376]
[1759369748441,7.77,222.93,222.85,1.71485009]
[1759369748947,7.77,222.93,222.89,1.71485009]
[1759369749448,7.77,222.95,222.89,1.71485009]
[1759369750145,11.8049,222.95,222.89,1.71485009]
[1759369750343,7.77,222.95,222.89,1.71485009]
[1759369750539,7.77,222.95,222.87,1.71485009]
[1759369750742,64.48635009,222.93,222.82,7.59]
[1759369750947,70.5448,222.92,222.83,1.71485009]
[1759369751646,72.25965009,222.92,222.83,1.71485009]
[1759369752041,7.77,222.87,222.78,7.59]
[1759369752247,7.77,222.89,222.8,1.71485009]
[1759369752641,1.71485009,222.88,222.8,1.71485009]
[1759369753240,4.0366,222.86,222.79,1.71485009]
[1759369753551,7.77,222.85,222.79,1.71485009]
[1759369753744,7.77,222.85,222.77,12.97697623]
[1759369753745,7.77,222.85,222.81,1.71485009]
[1759369754146,7.77,222.85,222.8,1.71485009]
[1759369754344,4.0363,222.88,222.8,1.71485009]
[1759369754345,4.0366,222.86,222.8,1.71485009]
[1759369754645,4.0366,222.86,222.77,12.97697623]
[1759369755243,7.77,222.87,222.77,12.97697623]
[1759369755445,7.77,222.87,222.82,1.71485009]
[1759369755645,7.77,222.87,222.82,9.30485009]
[1759369756043,7.77,222.88,222.82,9.30485009]
[1759369756448,7.77,222.92,222.84,1.71485009]
[1759369756643,7.77,222.92,222.82,7.59]
[1759369756950,7.77,222.88,222.84,1.71485009]
[1759369757151,7.77,222.88,222.81,1.71485009]
[1759369757652,4.0364,222.87,222.81,1.71485009]
[1759369758255,7.77,222.84,222.74,7.59]
[1759369758550,7.77,222.84,222.76,1.71485009]
[1759369759453,7.77,222.82,222.74,7.59]
[1759369759753,7.77,222.82,222.66,147.54333196]
[1759369759754,7.77,222.8,222.72,1.71485009]
[1759369759949,7.77,222.8,222.7,7.59]
[1759369760150,5.75265009,222.79,222.7,9.30485009]
[1759369760448,7.77,222.78,222.7,7.59]
[1759369760755,7.77,222.78,222.66,7.59]
[1759369760756,7.77,222.74,222.66,7.59]
[1759369761157,7.77,222.74,222.66,9.30485009]
[1759369762353,1.71485009,222.73,222.66,7.59]
[1759369762950,1.71485009,222.73,222.65,1.71485009]
[1759369763150,7.77,222.74,222.65,1.71485009]
[1759369763357,1.71485009,222.73,222.65,1.71485009]
[1759369763653,4.0385,222.76,222.63,1.71485009]
[1759369763654,7.42,222.7,222.63,1.71485009]
[1759369763858,1.71485009,222.69,222.62,9.06485009]
[1759369764056,7.42,222.7,222.62,9.06485009]
[1759369764251,7.42,222.7,222.64,1.71485009]
[1759369764452,7.42,222.7,222.62,7.35]
[1759369764651,7.42,222.7,222.65,1.71485009]
[1759369764855,1.71485009,222.73,222.65,1.71485009]
[1759369765054,7.42,222.72,222.65,1.71485009]
[1759369765354,7.42,222.72,222.62,7.35]
[1759369765546,7.42,222.76,222.68,1.71485009]
[1759369765753,7.42,222.76,222.7,1.71485009]
[1759369767252,7.42,222.76,222.66,7.8]
[1759369767452,7.42,222.76,222.7,1.71485009]
[1759369769664,7.42,222.76,222.69,1.71485009]
[1759369770058,7.42,222.74,222.64,4.0405]
[1759369770259,7.42,222.7,222.64,1.71485009]
[1759369770459,7.42,222.7,222.62,7.8]
[1759369770767,11.4591,222.72,222.64,1.71485009]
[1759369771553,13.17395009,222.72,222.64,1.71485009]
[1759369771953,9.13485009,222.72,222.64,1.71485009]
[1759369772153,7.42,222.72,222.66,1.71485009]
[1759369772857,100.82,222.76,222.7,1.71485009]
[1759369772858,7.42,222.76,222.7,1.71485009]
[1759369773062,7.42,222.76,222.68,7.8]
[1759369773259,7.42,222.76,222.68,11.8397]
[1759369773462,7.42,222.76,222.7,1.71485009]
[1759369775861,7.42,222.83,222.75,1.71485009]
[1759369776168,7.42,222.82,222.75,1.71485009]
[1759369776467,9.13485009,222.79,222.72,1.71485009]
[1759369777168,7.42,222.79,222.72,1.71485009]
[1759369780165,7.42,222.79,222.74,1.71485009]
[1759369780360,7.42,222.79,222.71,2.68127815]
[1759369780562,7.42,222.79,222.72,7.8]
[1759369782373,7.42,222.79,222.68,4.0397]
[1759369782567,7.42,222.79,222.69,2.68127815]
[1759369783573,11.4579,222.79,222.68,4.0397]
[1759369783772,11.4579,222.79,222.67,10.48127815]
[1759369784873,7.42,222.76,222.67,7.8]
[1759369785063,2.68127815,222.77,222.63,10.48127815]
[1759369785266,7.42,222.76,222.63,10.48127815]
[1759369785473,2.68127815,222.77,222.63,10.48127815]
[1759369785968,4.0386,222.75,222.63,10.48127815]
[1759369786164,7.42,222.73,222.6,2.68127815]
[1759369786962,7.42,222.73,222.59,7.8]
[1759369787570,4.0393,222.71,222.59,7.8]
[1759369788073,7.42,222.7,222.59,7.8]
[1759369788862,10.10127815,222.7,222.59,7.8]
[1759369789269,7.42,222.66,222.59,7.8]
[1759369790164,7.42,222.66,222.56,2.68127815]
[1759369790479,7.42,222.66,222.53,7.8]
[1759369790772,2.68127815,222.58,222.43,11.8443]
[1759369790972,2.68127815,222.58,222.44,2.68127815]
[1759369790973,7.42,222.57,222.44,2.68127815]
[1759369791174,7.42,222.57,222.43,11.8443]
[1759369791374,7.42,222.57,222.44,2.68127815]
[1759369791571,7.42,222.57,222.45,4.0439]
[1759369791969,7.42,222.57,222.45,6.72517815]
[1759369792974,7.42,222.57,222.48,7.8]
[1759369793173,7.42,222.62,222.48,7.8]
[1759369793474,7.42,222.62,222.51,2.68127815]
[1759369794078,7.4,222.62,222.48,14.52467815]
[1759369794276,17.66068555,222.64,222.48,11.8434]
[1759369794578,7.4,222.62,222.48,7.8]
[1759369794775,7.4,222.6,222.44,7.29]
[1759369795074,7.4,222.57,222.44,7.29]
[1759369795276,116.92,222.57,222.44,7.29]
[1759369795972,7.4,222.56,222.44,7.29]
[1759369798571,7.4,222.56,222.45,62.9062]
[1759369798877,7.4,222.56,222.46,11.3337]
[1759369799470,7.4,222.56,222.46,7.29]
[1759369801379,7.4,222.56,222.42,4.0444]
[1759369803082,7.4,222.56,222.45,7.29]
[1759369803279,106.37118129,222.69,222.47,7.29]
[1759369803280,7.4,222.62,222.47,7.29]
[1759369803476,7.4,222.62,222.48,62.8966]
[1759369803679,7.4,222.62,222.49,7.29]
[1759369804282,7.4,222.62,222.53,7.29]
[1759369805077,7.4,222.66,222.53,7.29]
[1759369805477,7.4,222.66,222.55,7.29]
[1759369805783,7.4,222.66,222.58,11.3315]
[1759369806283,3.76684509,222.68,222.6,4.0412]
[1759369806581,7.4,222.71,222.61,7.29]
[1759369806778,7.4,222.76,222.61,7.29]
[1759369806978,7.4,222.76,222.64,11.3305]
[1759369807177,7.4,222.76,222.64,7.29]
[1759369807378,7.4,222.73,222.57,37.21733863]
[1759369807586,7.4,222.73,222.58,11.3316]
[1759369808580,4.0391,222.72,222.58,11.3316]
[1759369808881,7.4,222.73,222.58,11.3316]
[1759369809075,62.8279,222.73,222.58,11.3316]
[1759369809276,7.4,222.7,222.58,7.29]
[1759369809478,7.4,222.68,222.54,7.29]
[1759369809885,7.4,222.68,222.54,11.3323]
[1759369810081,7.4,222.68,222.55,7.29]
[1759369811282,11.4398,222.68,222.56,4.042]
[1759369811481,7.4,222.68,222.55,7.29]
[1759369811883,7.4,222.68,222.55,11.3321]
[1759369812886,70.2378,222.7,222.55,7.29]
[1759369813087,4.04,222.67,222.55,7.29]
[1759369813288,7.4,222.66,222.55,7.29]
[1759369814786,7.4,222.71,222.57,62.8718]
[1759369814984,7.4,222.71,222.58,7.29]
[1759369816391,11.4393,222.71,222.58,11.3315]
[1759369816594,7.4,222.71,222.58,11.3315]
[1759369816789,7.4,222.71,222.58,7.29]
[1759369817291,7.4,222.71,222.6,4.0412]
[1759369817788,7.4,222.71,222.61,7.29]
[1759369819395,7.4,222.71,222.62,4.0408]
[1759369820991,7.4,222.71,222.61,7.29]
[1759369821399,7.4,222.71,222.57,7.88]
[1759369821799,7.4,222.71,222.6,4.0411]
[1759369823097,7.4,222.71,222.5,8.0861]
[1759369823098,7.85,222.71,222.49,7.88]
[1759369823291,7.25733863,222.7,222.5,62.8924]
[1759369823493,7.85,222.69,222.51,7.88]
[1759369823899,7.85,222.69,222.53,7.8]
[1759369825006,7.85,222.69,222.58,4.0416]
[1759369825203,7.85,222.69,222.57,7.8]
[1759369825507,7.85,222.69,222.59,7.8]
[1759369825906,7.85,222.69,222.62,4.0408]
[1759369826905,7.85,222.69,222.59,11.8413]
[1759369827309,7.85,222.69,222.59,7.8]
[1759369828614,7.85,222.69,222.6,4.0412]
[1759369829514,7.85,222.69,222.62,4.0409]
[1759369830314,7.85,222.69,222.59,11.8413]
[1759369833609,7.85,222.69,222.56,4.0418]
[1759369834416,11.8896,222.69,222.58,4.0416]
[1759369836315,14.57441039,222.69,222.58,4.0416]
[1759369836512,7.85,222.69,222.55,10.48481039]
[1759369836714,7.85,222.69,222.56,7.8]
[1759369837216,10.53481039,222.69,222.56,7.8]
[1759369837524,7.98,222.65,222.52,2.68481039]
[1759369837918,7.98,222.65,222.55,4.0421]
[1759369838114,7.98,222.65,222.56,7.8]
[1759369839622,7.98,222.62,222.51,10.48481039]
[1759369840919,7.98,222.62,222.52,4.0425]
[1759369842322,1.71900304,222.61,222.53,1.71900304]
[1759369842926,1.71900304,222.61,222.52,4.0425]
[1759369843228,1.71900304,222.61,222.53,1.71900304]
[1759369844926,1.71900304,222.61,222.52,4.0425]
[1759369844927,7.98,222.6,222.52,4.0425]
[1759369845119,7.98,222.6,222.52,5.76150304]
[1759369845928,1.71900304,222.59,222.51,7.8]
[1759369846130,7.98,222.58,222.5,1.71900304]
[1759369846521,1.71900304,222.57,222.5,1.71900304]
[1759369847222,1.71900304,222.57,222.49,4.0431]
[1759369847422,1.71900304,222.57,222.49,1.71900304]
[1759369847622,9.69900304,222.58,222.49,9.51900304]
[1759369848026,7.98,222.58,222.49,7.8]
[1759369848329,9.69900304,222.58,222.49,9.51900304]
[1759369848630,9.69900304,222.58,222.49,13.56220304]
[1759369849628,7.98,222.62,222.53,1.71900304]
[1759369849828,7.98,222.62,222.55,1.71900304]
[1759369850127,9.69900304,222.62,222.54,1.71900304]
[1759369851131,7.98,222.62,222.54,1.71900304]
[1759369851331,9.69900304,222.62,222.54,1.71900304]
[1759369851826,9.69900304,222.62,222.52,7.8]
[1759369852033,9.69900304,222.62,222.54,5.76120304]
[1759369852329,7.98,222.62,222.55,7.8]
[1759369852529,7.98,222.62,222.56,1.71900304]
[1759369852730,7.98,222.62,222.55,9.51900304]
[1759369852929,9.69900304,222.62,222.55,9.51900304]
[1759369854529,9.69900304,222.62,222.55,7.8]
[1759369856534,7.98,222.62,222.55,7.8]
[1759369856735,7.98,222.62,222.55,11.8421]
[1759369857034,7.98,222.62,222.55,13.56110304]
[1759369857634,9.69900304,222.62,222.55,13.56110304]
[1759369857841,1.71900304,222.6,222.52,4.0425]
[1759369858135,1.71900304,222.58,222.51,7.25]
[1759369858330,9.70900304,222.56,222.47,1.71900304]
[1759369858530,1.71900304,222.57,222.47,1.71900304]
[1759369859234,46.95,222.59,222.47,1.71900304]
[1759369859235,1.71900304,222.55,222.47,1.71900304]
[1759369859633,7.99,222.56,222.48,7.25]
[1759369860227,7.99,222.56,222.5,4.043]
[1759369862833,7.99,222.56,222.48,7.25]
[1759369863138,1.71900304,222.55,222.48,7.25]
[1759369863737,7.99,222.54,222.47,4.0435]
[1759369865932,7.99,222.54,222.47,1.71900304]
[1759369866132,1.71900304,222.57,222.5,7.25]
[1759369866529,1.71900304,222.53,222.46,7.25]
[1759369866732,9.70900304,222.51,222.41,7.25]
[1759369866930,1.71900304,222.49,222.41,7.25]
[1759369867131,1.71900304,222.47,222.41,7.25]
[1759369868937,9.70900304,222.48,222.41,7.25]
[1759369869143,9.70900304,222.48,222.41,11.2947]
[1759369869334,7.99,222.54,222.45,1.71900304]
[1759369869644,7.99,222.54,222.47,1.71900304]
[1759369869938,1.71900304,222.53,222.45,1.71900304]
[1759369870145,1.71900304,222.53,222.44,7.25]
[1759369870444,1.71900304,222.53,222.45,1.71900304]
[1759369870644,1.71900304,222.53,222.44,11.294]
[1759369870645,1.71900304,222.51,222.44,7.25]
[1759369870942,1.71900304,222.49,222.41,1.71900304]
[1759369872437,9.70900304,222.47,222.39,4.0449]
[1759369872841,9.70900304,222.47,222.38,1.71900304]
[1759369872842,1.71900304,222.45,222.38,1.71900304]
[1759369873041,1.71900304,222.45,222.36,13.01440304]
[1759369873241,1.71900304,222.43,222.36,13.01440304]
[1759369873438,1.71900304,222.43,222.36,11.2954]
[1759369873639,7.99,222.44,222.38,4.0451]
[1759369873841,7.99,222.44,222.36,7.25]
[1759369873842,1.71900304,222.45,222.37,1.71900304]
[1759369874036,1.71900304,222.47,222.39,1.71900304]
[1759369874241,1.71900304,222.48,222.39,1.71900304]
[1759369874439,1.71900304,222.46,222.37,4.0453]
[1759369874639,1.71900304,222.46,222.37,5.76430304]
[1759369874941,1.71900304,222.46,222.37,1.71900304]
[1759369875238,1.71900304,222.41,222.33,1.71900304]
[1759369876040,7.99,222.43,222.33,1.71900304]
[1759369876242,7.99,222.43,222.37,1.71900304]
[1759369876646,24.64,222.48,222.39,1.71900304]
[1759369876647,9.70900304,222.48,222.39,1.71900304]
[1759369877643,7.99,222.48,222.43,1.71900304]
[1759369877845,122.22900304,222.52,222.43,1.71900304]
[1759369878044,122.22900304,222.52,222.41,7.25]
[1759369878240,122.22900304,222.52,222.44,1.71900304]
[1759369878550,122.22900304,222.52,222.43,1.71900304]
[1759369879249,122.22900304,222.52,222.41,8.96900304]
[1759369879250,1.71900304,222.5,222.41,8.96900304]
[1759369881047,1.71900304,222.5,222.41,7.25]
[1759369881243,1.71900304,222.5,222.41,8.96900304]
[1759369883351,1.71900304,222.5,222.43,1.71900304]
[1759369883847,7.41,222.57,222.49,1.71900304]
[1759369884247,1.71900304,222.54,222.47,1.71900304]
[1759369887153,1.71900304,222.54,222.45,7.6]
[1759369887354,9.12900304,222.54,222.45,9.31900304]
[1759369888052,1.71900304,222.52,222.45,7.6]
[1759369889050,7.41,222.54,222.45,7.6]
[1759369889253,9.12900304,222.54,222.46,1.71900304]
[1759369890553,1.71900304,222.52,222.45,7.6]
[1759369890749,7.41,222.51,222.44,1.71900304]
[1759369891152,7.41,222.51,222.41,7.6]
[1759369891449,7.41,222.51,222.43,1.71900304]
[1759369892956,7.41,222.55,222.45,9.31900304]
[1759369893145,7.41,222.55,222.47,1.71900304]
[1759369893345,9.12900304,222.59,222.51,1.71900304]
[1759369893752,7.41,222.59,222.51,7.6]
[1759369893952,7.41,222.59,222.53,1.71900304]
[1759369894352,12.90453074,222.63,222.53,1.71900304]
[1759369894854,11.1855277,222.63,222.54,7.6]
[1759369895056,11.1855277,222.63,222.55,1.71900304]
[1759369895556,7.41,222.63,222.57,1.71900304]
[1759369895750,1.71900304,222.65,222.57,9.31900304]
[1759369895950,1.71900304,222.62,222.53,1.71900304]
[1759369896859,1.71900304,222.62,222.52,7.6]
[1759369896860,1.71900304,222.6,222.52,7.6]
[1759369898061,1.71900304,222.6,222.51,1.71900304]
[1759369898259,1.71900304,222.56,222.48,7.6]
[1759369898560,1.71900304,222.52,222.43,1.71900304]
[1759369898955,1.71900304,222.5,222.41,7.6]
[1759369899159,7.41,222.51,222.43,1.71900304]
[1759369900156,1.71900304,222.5,222.42,1.71900304]
[1759369902455,1.71900304,222.5,222.41,9.31900304]
[1759369902658,1.71900304,222.48,222.41,9.31900304]
[1759369903257,1.71900304,222.5,222.41,9.31900304]
[1759369903955,1.71900304,222.5,222.42,4.0445]
[1759369904257,7.41,222.51,222.42,4.0445]
[1759369904452,7.41,222.51,222.41,10.28815135]
[1759369904658,7.41,222.51,222.41,7.6]
[1759369905161,7.41,222.51,222.41,11.6446]
[1759369905357,7.41,222.51,222.4,7.6]
[1759369905557,2.68815135,222.55,222.43,7.6]
[1759369905760,10.09815135,222.55,222.43,7.6]
[1759369906654,10.09815135,222.55,222.43,11.6443]
[1759369908059,10.09815135,222.55,222.45,4.0439]
[1759369908256,7.41,222.55,222.46,7.6]